[Event "November 21 Early 2023"]
[Site "https://www.chess.com"]
[Date "2023.11.21"]
[Round "9"]
[White "Bobomurodova, Maftuna"]
[Black "Arhan_Anand"]
[Result "0-1"]
[Board "57"]
[TimeControl "180+1"]
[WhiteFideId "14207400"]
[WhiteElo "1814"]
[BlackElo "2656"]
[WhiteTeam "UZB"]
[WhiteClock "0:00:11"]
[BlackClock "0:00:13"]

1. e4 {[%clk 0:03:00]}  c5 {[%clk 0:03:00]} 2. Nf3 {[%clk 0:02:59]}  d6 {[%clk 0:03:00]} 3. Bb5+ {[%clk 0:02:59]}  Nd7 {[%clk 0:02:55]} 4. O-O {[%clk 0:02:58]}  a6 {[%clk 0:02:55]} 5. Bd3 {[%clk 0:02:58]}  Ngf6 {[%clk 0:02:55]} 6. c3 {[%clk 0:02:58]}  e6 {[%clk 0:02:54]} 7. Bc2 {[%clk 0:02:57]}  c4 {[%clk 0:02:53]} 8. d4 {[%clk 0:02:56]}  cxd3 {[%clk 0:02:53]} 9. Bxd3 {[%clk 0:02:56]}  b5 {[%clk 0:02:52]} 10. Nbd2 {[%clk 0:02:55]}  Bb7 {[%clk 0:02:49]} 11. Re1 {[%clk 0:02:55]}  Be7 {[%clk 0:02:49]} 12. Bc2 {[%clk 0:02:51]}  O-O {[%clk 0:02:49]} 13. Nf1 {[%clk 0:02:51]}  Nc5 {[%clk 0:02:46]} 14. Ng3 {[%clk 0:02:50]}  Rc8 {[%clk 0:02:36]} 15. Bf4 {[%clk 0:02:43]}  Qb6 {[%clk 0:02:30]} 16. Qd2 {[%clk 0:02:39]}  Rfd8 {[%clk 0:02:29]} 17. Rad1 {[%clk 0:02:38]}  Qc7 {[%clk 0:02:20]} 18. Qc1 {[%clk 0:02:35]}  Ng4 {[%clk 0:02:06]} 19. h3 {[%clk 0:02:32]}  Ne5 {[%clk 0:02:06]} 20. Nxe5 {[%clk 0:02:30]}  dxe5 {[%clk 0:02:07]} 21. Be3 {[%clk 0:02:30]}  Bh4 {[%clk 0:02:01]} 22. Bg5 {[%clk 0:02:23]}  Rxd1 {[%clk 0:01:58]} 23. Rxd1 {[%clk 0:02:15]}  Bxg3 {[%clk 0:01:58]} 24. fxg3 {[%clk 0:02:14]}  Bxe4 {[%clk 0:01:54]} 25. Be3 {[%clk 0:02:08]}  Bd5 {[%clk 0:01:50]} 26. b3 {[%clk 0:02:00]}  Nd7 {[%clk 0:01:42]} 27. Bd2 {[%clk 0:01:55]}  Qc5+ {[%clk 0:01:42]} 28. Kh2 {[%clk 0:01:54]}  Qf2 {[%clk 0:01:42]} 29. Rg1 {[%clk 0:01:53]}  Nf6 {[%clk 0:01:39]} 30. Qe1 {[%clk 0:01:52]}  Qc5 {[%clk 0:01:28]} 31. Qxe5 {[%clk 0:01:48]}  Qa3 {[%clk 0:01:18]} 32. Bb1 {[%clk 0:01:44]}  Qb2 {[%clk 0:01:13]} 33. Bg5 {[%clk 0:01:33]}  Qxc3 {[%clk 0:01:07]} 34. Bxf6 {[%clk 0:01:31]}  gxf6 {[%clk 0:01:07]} 35. Qh5 {[%clk 0:01:25]}  f5 {[%clk 0:01:08]} 36. Qg5+ {[%clk 0:01:17]}  Kh8 {[%clk 0:01:04]} 37. Qe7 {[%clk 0:01:14]}  Rg8 {[%clk 0:01:01]} 38. g4 {[%clk 0:01:10]}  Qe5+ {[%clk 0:00:58]} 39. Kh1 {[%clk 0:01:05]}  fxg4 {[%clk 0:00:42]} 40. Qxf7 {[%clk 0:01:04]}  Qg7 {[%clk 0:00:31]} 41. Qxg7+ {[%clk 0:00:57]}  Rxg7 {[%clk 0:00:32]} 42. Kh2 {[%clk 0:00:47]}  g3+ {[%clk 0:00:32]} 43. Kh1 {[%clk 0:00:46]}  Rf7 {[%clk 0:00:33]} 44. Bd3 {[%clk 0:00:43]}  Rf2 {[%clk 0:00:33]} 45. a4 {[%clk 0:00:35]}  bxa4 {[%clk 0:00:27]} 46. bxa4 {[%clk 0:00:35]}  a5 {[%clk 0:00:28]} 47. Bb5 {[%clk 0:00:35]}  e5 {[%clk 0:00:24]} 48. Rc1 {[%clk 0:00:32]}  Bxg2+ {[%clk 0:00:22]} 49. Kg1 {[%clk 0:00:32]}  Bf3 {[%clk 0:00:23]} 50. Rc8+ {[%clk 0:00:29]}  Kg7 {[%clk 0:00:22]} 51. Bc4 {[%clk 0:00:25]}  Kh6 {[%clk 0:00:18]} 52. Rg8 {[%clk 0:00:22]}  Rg2+ {[%clk 0:00:19]} 53. Kf1 {[%clk 0:00:20]}  e4 {[%clk 0:00:19]} 54. Bd5 {[%clk 0:00:11]}  Rd2 {[%clk 0:00:18]} 55. Rxg3 {[%clk 0:00:10]}  Rxd5 {[%clk 0:00:18]} 56. Kf2 {[%clk 0:00:10]}  Rd4 {[%clk 0:00:18]} 57. Ke3 {[%clk 0:00:11]}  Rxa4 {[%clk 0:00:18]} 58. Rg1 {[%clk 0:00:10]}  Ra2 {[%clk 0:00:18]} 59. Rc1 {[%clk 0:00:11]}  Re2+ {[%clk 0:00:18]} 60. Kf4 {[%clk 0:00:11]}  Rf2 {[%clk 0:00:17]} 61. Rc5 {[%clk 0:00:12]}  Bh1+ {[%clk 0:00:16]} 62. Ke3 {[%clk 0:00:12]}  Rf3+ {[%clk 0:00:16]} 63. Ke2 {[%clk 0:00:12]}  Rxh3 {[%clk 0:00:17]} 64. Rxa5 {[%clk 0:00:13]}  Bf3+ {[%clk 0:00:16]} 65. Kf2 {[%clk 0:00:13]}  Bh5 {[%clk 0:00:13]} 66. Ra6+ {[%clk 0:00:13]}  Bg6 {[%clk 0:00:13]} 67. Re6 {[%clk 0:00:13]}  e3+ {[%clk 0:00:13]} 68. Ke2 {[%clk 0:00:11]}  Kg5 {[%clk 0:00:13]} 69. Re5+ {[%clk 0:00:11]}  Kf4 {[%clk 0:00:13]} 70. Re7 {[%clk 0:00:12]}  Bh5+ {[%clk 0:00:13]} 71. Kf1 {[%clk 0:00:12]}  Rh1+ {[%clk 0:00:12]} 72. Kg2 {[%clk 0:00:11]}  Bf3# {[%clk 0:00:13]} 0-1

[Event "November 21 Early 2023"]
[Site "https://www.chess.com"]
[Date "2023.11.21"]
[Round "9"]
[White "Boruchovsky, Avital"]
[Black "NelsonLinda"]
[Result "0-1"]
[Board "61"]
[TimeControl "180+1"]
[WhiteFideId "2800055"]
[WhiteElo "2450"]
[BlackElo "2568"]
[WhiteTeam "ISR"]
[WhiteClock "0:00:00"]
[BlackClock "0:00:11"]

1. e4 {[%clk 0:03:00]}  c5 {[%clk 0:02:50]} 2. Nf3 {[%clk 0:03:00]}  e6 {[%clk 0:02:50]} 3. c3 {[%clk 0:02:58]}  Nf6 {[%clk 0:02:47]} 4. e5 {[%clk 0:02:58]}  Nd5 {[%clk 0:02:47]} 5. d4 {[%clk 0:02:59]}  cxd4 {[%clk 0:02:48]} 6. cxd4 {[%clk 0:02:59]}  d6 {[%clk 0:02:49]} 7. Bc4 {[%clk 0:02:56]}  Be7 {[%clk 0:02:49]} 8. exd6 {[%clk 0:02:56]}  Qxd6 {[%clk 0:02:43]} 9. O-O {[%clk 0:02:55]}  O-O {[%clk 0:02:44]} 10. Nc3 {[%clk 0:02:54]}  Nxc3 {[%clk 0:02:39]} 11. bxc3 {[%clk 0:02:52]}  b6 {[%clk 0:02:40]} 12. Re1 {[%clk 0:02:49]}  Bb7 {[%clk 0:02:40]} 13. Bd3 {[%clk 0:02:44]}  Nd7 {[%clk 0:02:34]} 14. Bc2 {[%clk 0:02:23]}  Rac8 {[%clk 0:02:15]} 15. Qd3 {[%clk 0:02:22]}  g6 {[%clk 0:02:14]} 16. Bh6 {[%clk 0:02:21]}  Rfd8 {[%clk 0:02:15]} 17. Rad1 {[%clk 0:02:05]}  Qc6 {[%clk 0:02:05]} 18. d5 {[%clk 0:01:56]}  Qxc3 {[%clk 0:01:57]} 19. dxe6 {[%clk 0:01:54]}  Qxd3 {[%clk 0:01:51]} 20. exf7+ {[%clk 0:01:50]}  Kxf7 {[%clk 0:01:51]} 21. Bxd3 {[%clk 0:01:49]}  Bf6 {[%clk 0:01:30]} 22. Ng5+ {[%clk 0:01:42]}  Kg8 {[%clk 0:01:27]} 23. Ne6 {[%clk 0:01:35]}  Re8 {[%clk 0:01:27]} 24. Bb5 {[%clk 0:01:34]}  Bc6 {[%clk 0:01:27]} 25. Ba6 {[%clk 0:01:28]}  Ra8 {[%clk 0:01:11]} 26. h3 {[%clk 0:01:18]}  Nc5 {[%clk 0:01:00]} 27. Nxc5 {[%clk 0:01:11]}  bxc5 {[%clk 0:01:00]} 28. Bc4+ {[%clk 0:01:07]}  Kh8 {[%clk 0:00:59]} 29. Rxe8+ {[%clk 0:00:44]}  Rxe8 {[%clk 0:00:59]} 30. Be3 {[%clk 0:00:44]}  Be7 {[%clk 0:00:46]} 31. Bf4 {[%clk 0:00:20]}  Bf8 {[%clk 0:00:40]} 32. Bf7 {[%clk 0:00:09]}  Re4 {[%clk 0:00:39]} 33. Bg3 {[%clk 0:00:06]}  Kg7 {[%clk 0:00:39]} 34. Bd5 {[%clk 0:00:04]}  Bxd5 {[%clk 0:00:34]} 35. Rxd5 {[%clk 0:00:05]}  Re1+ {[%clk 0:00:24]} 36. Kh2 {[%clk 0:00:05]}  Re2 {[%clk 0:00:25]} 37. Rd7+ {[%clk 0:00:04]}  Re7 {[%clk 0:00:25]} 38. Rd8 {[%clk 0:00:05]}  Re2 {[%clk 0:00:17]} 39. a4 {[%clk 0:00:04]}  a6 {[%clk 0:00:12]} 40. Ra8 {[%clk 0:00:03]}  Re6 {[%clk 0:00:12]} 41. Rc8 {[%clk 0:00:03]}  Kf7 {[%clk 0:00:12]} 42. Rc7+ {[%clk 0:00:03]}  Kg8 {[%clk 0:00:11]} 43. Bf4 {[%clk 0:00:00]}  Re4 {[%clk 0:00:11]} 0-1

[Event "November 21 Early 2023"]
[Site "https://www.chess.com"]
[Date "2023.11.21"]
[Round "9"]
[White "Redzisz, Michal"]
[Black "Vasquez Schroeder, Rodrigo"]
[Result "0-1"]
[Board "62"]
[TimeControl "180+1"]
[WhiteFideId "21816107"]
[BlackFideId "3400042"]
[WhiteElo "2068"]
[BlackElo "2582"]
[WhiteTeam "POL"]
[BlackTeam "CHI"]
[WhiteClock "0:00:00"]
[BlackClock "0:00:40"]

1. Nf3 {[%clk 0:02:45]}  c5 {[%clk 0:02:59]} 2. c4 {[%clk 0:02:46]}  Nf6 {[%clk 0:02:59]} 3. Nc3 {[%clk 0:02:41]}  e6 {[%clk 0:02:57]} 4. g3 {[%clk 0:02:31]}  b6 {[%clk 0:02:57]} 5. Bg2 {[%clk 0:02:31]}  Bb7 {[%clk 0:02:57]} 6. O-O {[%clk 0:02:31]}  a6 {[%clk 0:02:58]} 7. b3 {[%clk 0:02:30]}  d6 {[%clk 0:02:57]} 8. Bb2 {[%clk 0:02:29]}  Be7 {[%clk 0:02:58]} 9. e3 {[%clk 0:02:29]}  Qc7 {[%clk 0:02:57]} 10. d4 {[%clk 0:02:29]}  Nbd7 {[%clk 0:02:58]} 11. Rc1 {[%clk 0:02:29]}  O-O {[%clk 0:02:57]} 12. Qe2 {[%clk 0:02:24]}  Rfe8 {[%clk 0:02:53]} 13. Nh4 {[%clk 0:02:20]}  cxd4 {[%clk 0:02:45]} 14. exd4 {[%clk 0:02:18]}  Rac8 {[%clk 0:02:45]} 15. Rfd1 {[%clk 0:02:08]}  Qb8 {[%clk 0:02:42]} 16. a4 {[%clk 0:02:02]}  Bf8 {[%clk 0:02:40]} 17. Bxb7 {[%clk 0:01:49]}  Qxb7 {[%clk 0:02:39]} 18. Ng2 {[%clk 0:01:50]}  d5 {[%clk 0:02:35]} 19. Ne3 {[%clk 0:01:47]}  Bb4 {[%clk 0:02:26]} 20. cxd5 {[%clk 0:01:42]}  exd5 {[%clk 0:02:23]} 21. Qf3 {[%clk 0:01:29]}  Bxc3 {[%clk 0:02:20]} 22. Rxc3 {[%clk 0:01:30]}  Rxc3 {[%clk 0:02:18]} 23. Bxc3 {[%clk 0:01:31]}  Ne4 {[%clk 0:02:18]} 24. Bb4 {[%clk 0:01:27]}  a5 {[%clk 0:02:14]} 25. Ba3 {[%clk 0:01:26]}  g6 {[%clk 0:02:11]} 26. Rc1 {[%clk 0:01:14]}  Ndf6 {[%clk 0:02:10]} 27. Qf4 {[%clk 0:01:06]}  Qd7 {[%clk 0:01:55]} 28. Rc7 {[%clk 0:00:34]}  Qe6 {[%clk 0:01:55]} 29. Kg2 {[%clk 0:00:25]}  h5 {[%clk 0:01:43]} 30. h3 {[%clk 0:00:24]}  Kg7 {[%clk 0:01:37]} 31. Rb7 {[%clk 0:00:14]}  Nc3 {[%clk 0:00:53]} 32. Qe5 {[%clk 0:00:10]}  Ne2 {[%clk 0:00:50]} 33. Qxe6 {[%clk 0:00:10]}  Rxe6 {[%clk 0:00:49]} 34. Re7 {[%clk 0:00:05]}  Nxd4 {[%clk 0:00:44]} 35. Rb7 {[%clk 0:00:03]}  Nxb3 {[%clk 0:00:40]} 36. Bb2 {[%clk 0:00:03]}  d4 {[%clk 0:00:40]} 37. Nc4 {[%clk 0:00:02]}  Nd5 {[%clk 0:00:41]} 38. Rd7 {[%clk 0:00:00]}  Nc3 {[%clk 0:00:40]} 0-1

[Event "November 21 Early 2023"]
[Site "https://www.chess.com"]
[Date "2023.11.21"]
[Round "9"]
[White "FREDERICKtheMATE"]
[Black "Djordjevic, Vuk"]
[Result "0-1"]
[Board "64"]
[TimeControl "180+1"]
[BlackFideId "902098"]
[WhiteElo "2562"]
[BlackElo "2425"]
[BlackTeam "SRB"]
[WhiteClock "0:00:25"]
[BlackClock "0:00:10"]

1. Nf3 {[%clk 0:03:00]}  Nf6 {[%clk 0:02:58]} 2. c4 {[%clk 0:03:00]}  e6 {[%clk 0:02:58]} 3. d4 {[%clk 0:02:58]}  b6 {[%clk 0:02:58]} 4. a3 {[%clk 0:02:57]}  Bb7 {[%clk 0:02:58]} 5. Nc3 {[%clk 0:02:58]}  d5 {[%clk 0:02:59]} 6. Bg5 {[%clk 0:02:53]}  Be7 {[%clk 0:02:58]} 7. e3 {[%clk 0:02:52]}  O-O {[%clk 0:02:58]} 8. cxd5 {[%clk 0:02:50]}  Nxd5 {[%clk 0:02:57]} 9. Bxe7 {[%clk 0:02:50]}  Qxe7 {[%clk 0:02:57]} 10. Bd3 {[%clk 0:02:49]}  Nd7 {[%clk 0:02:55]} 11. O-O {[%clk 0:02:49]}  Nxc3 {[%clk 0:02:50]} 12. bxc3 {[%clk 0:02:49]}  e5 {[%clk 0:02:50]} 13. Bf5 {[%clk 0:02:45]}  exd4 {[%clk 0:02:00]} 14. cxd4 {[%clk 0:02:41]}  Nf6 {[%clk 0:01:56]} 15. Rc1 {[%clk 0:02:39]}  Qxa3 {[%clk 0:01:43]} 16. Rxc7 {[%clk 0:02:38]}  Bd5 {[%clk 0:01:43]} 17. Ne5 {[%clk 0:02:32]}  Qd6 {[%clk 0:01:36]} 18. Qc2 {[%clk 0:02:31]}  a5 {[%clk 0:01:35]} 19. Rc1 {[%clk 0:02:28]}  a4 {[%clk 0:01:33]} 20. e4 {[%clk 0:02:16]}  Bb3 {[%clk 0:00:53]} 21. Qc3 {[%clk 0:02:07]}  g6 {[%clk 0:00:48]} 22. Rc6 {[%clk 0:02:06]}  Qd8 {[%clk 0:00:37]} 23. Ng4 {[%clk 0:01:50]}  Nxg4 {[%clk 0:00:34]} 24. Bxg4 {[%clk 0:01:50]}  b5 {[%clk 0:00:34]} 25. Be2 {[%clk 0:01:44]}  Rb8 {[%clk 0:00:30]} 26. Qb4 {[%clk 0:01:41]}  Re8 {[%clk 0:00:25]} 27. f3 {[%clk 0:01:41]}  Qg5 {[%clk 0:00:26]} 28. Kf2 {[%clk 0:01:35]}  Qh4+ {[%clk 0:00:25]} 29. Kg1 {[%clk 0:01:34]}  Qf4 {[%clk 0:00:22]} 30. Bxb5 {[%clk 0:01:18]}  Qe3+ {[%clk 0:00:22]} 31. Kf1 {[%clk 0:01:19]}  Red8 {[%clk 0:00:15]} 32. d5 {[%clk 0:01:14]}  Qf4 {[%clk 0:00:11]} 33. Kg1 {[%clk 0:00:54]}  Rxd5 {[%clk 0:00:10]} 34. Rc8+ {[%clk 0:00:48]}  Rd8 {[%clk 0:00:10]} 35. Rxd8+ {[%clk 0:00:44]}  Rxd8 {[%clk 0:00:11]} 36. Re1 {[%clk 0:00:41]}  Rb8 {[%clk 0:00:10]} 37. Qc5 {[%clk 0:00:34]}  Qd2 {[%clk 0:00:09]} 38. Rf1 {[%clk 0:00:25]}  Qa5 {[%clk 0:00:10]} 0-1

[Event "November 21 Early 2023"]
[Site "https://www.chess.com"]
[Date "2023.11.21"]
[Round "9"]
[White "Sattarov, Bobir"]
[Black "Grossboss19"]
[Result "1-0"]
[Board "67"]
[TimeControl "180+1"]
[WhiteFideId "14203081"]
[WhiteElo "2351"]
[BlackElo "2523"]
[WhiteTeam "UZB"]
[WhiteClock "0:00:13"]
[BlackClock "0:00:13"]

1. e4 {[%clk 0:03:00]}  c5 {[%clk 0:02:58]} 2. Nc3 {[%clk 0:03:00]}  Nc6 {[%clk 0:02:58]} 3. Nge2 {[%clk 0:03:01]}  g6 {[%clk 0:02:58]} 4. d4 {[%clk 0:03:01]}  cxd4 {[%clk 0:02:59]} 5. Nxd4 {[%clk 0:03:02]}  Bg7 {[%clk 0:02:59]} 6. Be3 {[%clk 0:03:03]}  Nf6 {[%clk 0:02:57]} 7. Nxc6 {[%clk 0:03:03]}  dxc6 {[%clk 0:02:53]} 8. Qxd8+ {[%clk 0:03:04]}  Kxd8 {[%clk 0:02:53]} 9. O-O-O+ {[%clk 0:03:04]}  Ke8 {[%clk 0:02:52]} 10. f3 {[%clk 0:03:04]}  Be6 {[%clk 0:02:50]} 11. a4 {[%clk 0:03:02]}  a5 {[%clk 0:02:46]} 12. Ne2 {[%clk 0:02:57]}  Bc4 {[%clk 0:02:44]} 13. Nd4 {[%clk 0:02:53]}  Bxf1 {[%clk 0:02:43]} 14. Rhxf1 {[%clk 0:02:54]}  Nd7 {[%clk 0:02:42]} 15. Nb3 {[%clk 0:02:53]}  Be5 {[%clk 0:02:33]} 16. f4 {[%clk 0:02:48]}  Bc7 {[%clk 0:02:32]} 17. e5 {[%clk 0:02:43]}  Bb6 {[%clk 0:02:19]} 18. Rf3 {[%clk 0:02:34]}  e6 {[%clk 0:02:10]} 19. Kb1 {[%clk 0:02:04]}  Ke7 {[%clk 0:02:06]} 20. Rxd7+ {[%clk 0:02:03]}  Kxd7 {[%clk 0:02:03]} 21. Bxb6 {[%clk 0:02:04]}  c5 {[%clk 0:02:02]} 22. Nxc5+ {[%clk 0:01:54]}  Kc6 {[%clk 0:02:01]} 23. Rb3 {[%clk 0:01:54]}  g5 {[%clk 0:01:49]} 24. Nd3 {[%clk 0:01:39]}  gxf4 {[%clk 0:01:43]} 25. Nxf4 {[%clk 0:01:40]}  Rhg8 {[%clk 0:01:34]} 26. Rb5 {[%clk 0:01:22]}  h5 {[%clk 0:01:21]} 27. b3 {[%clk 0:01:07]}  h4 {[%clk 0:01:14]} 28. Bxa5 {[%clk 0:01:06]}  Rg4 {[%clk 0:01:07]} 29. Bd2 {[%clk 0:00:47]}  Rd8 {[%clk 0:01:00]} 30. Be3 {[%clk 0:00:41]}  Rd1+ {[%clk 0:00:59]} 31. Kb2 {[%clk 0:00:42]}  Re1 {[%clk 0:00:58]} 32. Bd2 {[%clk 0:00:21]}  Rd1 {[%clk 0:00:41]} 33. Be3 {[%clk 0:00:21]}  Re1 {[%clk 0:00:41]} 34. Bf2 {[%clk 0:00:21]}  Rf1 {[%clk 0:00:38]} 35. Nd3 {[%clk 0:00:21]}  Rxg2 {[%clk 0:00:36]} 36. Bxh4 {[%clk 0:00:20]}  Rxh2 {[%clk 0:00:34]} 37. Rc5+ {[%clk 0:00:18]}  Kd7 {[%clk 0:00:33]} 38. Bf6 {[%clk 0:00:17]}  Rd1 {[%clk 0:00:28]} 39. Nc1 {[%clk 0:00:16]}  Rhh1 {[%clk 0:00:25]} 40. Na2 {[%clk 0:00:16]}  Rb1+ {[%clk 0:00:16]} 41. Kc3 {[%clk 0:00:16]}  Rh3+ {[%clk 0:00:16]} 42. Kb4 {[%clk 0:00:15]}  Rh4+ {[%clk 0:00:13]} 43. Bxh4 {[%clk 0:00:13]} 1-0

[Event "November 21 Early 2023"]
[Site "https://www.chess.com"]
[Date "2023.11.21"]
[Round "9"]
[White "Baches Garcia, Guillermo"]
[Black "Starozhilov, Leonid"]
[Result "0-1"]
[Board "69"]
[TimeControl "180+1"]
[WhiteFideId "2209764"]
[BlackFideId "14106752"]
[WhiteElo "2521"]
[BlackElo "2270"]
[WhiteTeam "ESP"]
[BlackTeam "UKR"]
[WhiteClock "0:00:00"]
[BlackClock "0:00:25"]

1. d4 {[%clk 0:03:00]}  Nf6 {[%clk 0:02:59]} 2. Nf3 {[%clk 0:03:01]}  g6 {[%clk 0:02:59]} 3. Bg5 {[%clk 0:03:01]}  Ne4 {[%clk 0:02:59]} 4. Bf4 {[%clk 0:02:59]}  Bg7 {[%clk 0:02:59]} 5. Nbd2 {[%clk 0:02:57]}  Nxd2 {[%clk 0:02:59]} 6. Qxd2 {[%clk 0:02:57]}  d6 {[%clk 0:02:59]} 7. Bh6 {[%clk 0:02:56]}  Bf6 {[%clk 0:03:00]} 8. h4 {[%clk 0:02:54]}  Bg4 {[%clk 0:02:56]} 9. O-O-O {[%clk 0:02:52]}  Nc6 {[%clk 0:02:42]} 10. e3 {[%clk 0:02:47]}  a6 {[%clk 0:02:26]} 11. Kb1 {[%clk 0:02:45]}  Qd7 {[%clk 0:02:25]} 12. Be2 {[%clk 0:02:30]}  O-O-O {[%clk 0:02:18]} 13. d5 {[%clk 0:02:24]}  Bxf3 {[%clk 0:02:10]} 14. gxf3 {[%clk 0:02:10]}  Ne5 {[%clk 0:02:02]} 15. h5 {[%clk 0:02:04]}  Qa4 {[%clk 0:01:54]} 16. hxg6 {[%clk 0:01:49]}  hxg6 {[%clk 0:01:46]} 17. Bf4 {[%clk 0:01:47]}  Nc4 {[%clk 0:01:39]} 18. Bxc4 {[%clk 0:01:44]}  Qxc4 {[%clk 0:01:40]} 19. c3 {[%clk 0:01:40]}  Rdg8 {[%clk 0:01:37]} 20. e4 {[%clk 0:01:33]}  g5 {[%clk 0:01:29]} 21. Be3 {[%clk 0:01:33]}  g4 {[%clk 0:01:28]} 22. Rxh8 {[%clk 0:01:10]}  Bxh8 {[%clk 0:01:27]} 23. b3 {[%clk 0:01:03]}  Qxc3 {[%clk 0:01:27]} 24. Qxc3 {[%clk 0:01:02]}  Bxc3 {[%clk 0:01:28]} 25. Rg1 {[%clk 0:01:01]}  c6 {[%clk 0:01:08]} 26. dxc6 {[%clk 0:01:00]}  bxc6 {[%clk 0:01:07]} 27. fxg4 {[%clk 0:01:00]}  Kd7 {[%clk 0:01:01]} 28. Kc2 {[%clk 0:01:00]}  Bb4 {[%clk 0:00:54]} 29. Kd3 {[%clk 0:00:59]}  d5 {[%clk 0:00:54]} 30. g5 {[%clk 0:00:50]}  Rh8 {[%clk 0:00:53]} 31. Rg4 {[%clk 0:00:45]}  Bd6 {[%clk 0:00:51]} 32. exd5 {[%clk 0:00:41]}  cxd5 {[%clk 0:00:51]} 33. Ra4 {[%clk 0:00:38]}  Ra8 {[%clk 0:00:50]} 34. b4 {[%clk 0:00:29]}  Kc6 {[%clk 0:00:47]} 35. a3 {[%clk 0:00:26]}  Bc7 {[%clk 0:00:45]} 36. b5+ {[%clk 0:00:14]}  Kxb5 {[%clk 0:00:46]} 37. Rb4+ {[%clk 0:00:14]}  Kc6 {[%clk 0:00:46]} 38. Rb1 {[%clk 0:00:14]}  e5 {[%clk 0:00:35]} 39. f3 {[%clk 0:00:13]}  Rb8 {[%clk 0:00:33]} 40. Rc1+ {[%clk 0:00:13]}  Kd6 {[%clk 0:00:33]} 41. Kc2 {[%clk 0:00:13]}  Bb6 {[%clk 0:00:30]} 42. Rb1 {[%clk 0:00:10]}  Rc8+ {[%clk 0:00:30]} 43. Kd3 {[%clk 0:00:10]}  Bxe3 {[%clk 0:00:30]} 44. Kxe3 {[%clk 0:00:10]}  Rc3+ {[%clk 0:00:29]} 45. Ke2 {[%clk 0:00:04]}  Rxa3 {[%clk 0:00:28]} 46. Rb6+ {[%clk 0:00:05]}  Ke7 {[%clk 0:00:28]} 47. g6 {[%clk 0:00:05]}  fxg6 {[%clk 0:00:28]} 48. Rxg6 {[%clk 0:00:06]}  d4 {[%clk 0:00:27]} 49. Rb6 {[%clk 0:00:06]}  a5 {[%clk 0:00:25]} 50. f4 {[%clk 0:00:06]}  exf4 {[%clk 0:00:25]} 51. Rb3 {[%clk 0:00:00]}  Rxb3 {[%clk 0:00:25]} 0-1

[Event "November 21 Early 2023"]
[Site "https://www.chess.com"]
[Date "2023.11.21"]
[Round "9"]
[White "Jakubowski, Krzysztof"]
[Black "Kuegel, Tobias"]
[Result "1-0"]
[Board "70"]
[TimeControl "180+1"]
[WhiteFideId "1112848"]
[BlackFideId "4636295"]
[WhiteElo "2369"]
[BlackElo "2213"]
[WhiteTeam "POL"]
[BlackTeam "GER"]
[WhiteClock "0:00:46"]
[BlackClock "0:00:00"]

1. e4 {[%clk 0:02:55]}  e5 {[%clk 0:02:54]} 2. Nf3 {[%clk 0:02:54]}  Nc6 {[%clk 0:02:54]} 3. Bc4 {[%clk 0:02:53]}  Bc5 {[%clk 0:02:54]} 4. O-O {[%clk 0:02:52]}  Nf6 {[%clk 0:02:53]} 5. d3 {[%clk 0:02:52]}  O-O {[%clk 0:02:49]} 6. c3 {[%clk 0:02:51]}  d5 {[%clk 0:02:49]} 7. exd5 {[%clk 0:02:51]}  Nxd5 {[%clk 0:02:50]} 8. b4 {[%clk 0:02:50]}  Be7 {[%clk 0:02:46]} 9. Re1 {[%clk 0:02:46]}  Bg4 {[%clk 0:02:43]} 10. h3 {[%clk 0:02:45]}  Bh5 {[%clk 0:02:43]} 11. b5 {[%clk 0:02:30]}  Na5 {[%clk 0:02:39]} 12. Rxe5 {[%clk 0:02:23]}  Nf6 {[%clk 0:02:37]} 13. Nbd2 {[%clk 0:02:07]}  Nxc4 {[%clk 0:01:36]} 14. Nxc4 {[%clk 0:02:04]}  a6 {[%clk 0:01:36]} 15. bxa6 {[%clk 0:01:50]}  Rxa6 {[%clk 0:01:37]} 16. Qe2 {[%clk 0:01:38]}  Re8 {[%clk 0:01:26]} 17. Bg5 {[%clk 0:01:34]}  Bg6 {[%clk 0:00:55]} 18. d4 {[%clk 0:01:25]}  Nd5 {[%clk 0:00:39]} 19. Bxe7 {[%clk 0:01:14]}  Nxe7 {[%clk 0:00:30]} 20. Re1 {[%clk 0:01:10]}  Kf8 {[%clk 0:00:26]} 21. Qb2 {[%clk 0:00:58]}  f6 {[%clk 0:00:22]} 22. R5e3 {[%clk 0:00:56]}  Qd5 {[%clk 0:00:17]} 23. Qb4 {[%clk 0:00:53]}  c5 {[%clk 0:00:10]} 24. dxc5 {[%clk 0:00:50]}  Nf5 {[%clk 0:00:05]} 25. Rxe8+ {[%clk 0:00:48]}  Bxe8 {[%clk 0:00:05]} 26. c6+ {[%clk 0:00:47]}  Kf7 {[%clk 0:00:00]} 27. cxb7 {[%clk 0:00:46]} 1-0

[Event "November 21 Early 2023"]
[Site "https://www.chess.com"]
[Date "2023.11.21"]
[Round "9"]
[White "Nagare Kaivalya Sandip"]
[Black "UNSTOPPABLE_LEGEND"]
[Result "1-0"]
[Board "72"]
[TimeControl "180+1"]
[WhiteFideId "25957929"]
[WhiteElo "2024"]
[BlackElo "2510"]
[WhiteTeam "IND"]
[WhiteClock "0:01:19"]
[BlackClock "0:00:02"]

1. e4 {[%clk 0:02:58]}  Nc6 {[%clk 0:02:58]} 2. Nf3 {[%clk 0:02:58]}  d6 {[%clk 0:02:58]} 3. d4 {[%clk 0:02:51]}  Nf6 {[%clk 0:02:58]} 4. Nc3 {[%clk 0:02:50]}  g6 {[%clk 0:02:57]} 5. d5 {[%clk 0:02:49]}  Nb8 {[%clk 0:02:56]} 6. h3 {[%clk 0:02:48]}  Bg7 {[%clk 0:02:56]} 7. Bg5 {[%clk 0:02:49]}  O-O {[%clk 0:02:56]} 8. Qd2 {[%clk 0:02:49]}  c6 {[%clk 0:02:55]} 9. Bd3 {[%clk 0:02:46]}  Nbd7 {[%clk 0:02:49]} 10. O-O {[%clk 0:02:41]}  Nc5 {[%clk 0:02:42]} 11. Rfe1 {[%clk 0:02:41]}  a5 {[%clk 0:02:35]} 12. Bf1 {[%clk 0:02:38]}  Qb6 {[%clk 0:01:56]} 13. Rab1 {[%clk 0:02:25]}  a4 {[%clk 0:01:50]} 14. a3 {[%clk 0:02:12]}  Bd7 {[%clk 0:01:40]} 15. e5 {[%clk 0:02:08]}  dxe5 {[%clk 0:01:37]} 16. Nxe5 {[%clk 0:02:08]}  Bf5 {[%clk 0:01:27]} 17. Nc4 {[%clk 0:02:06]}  Qc7 {[%clk 0:01:25]} 18. Bf4 {[%clk 0:02:03]}  Qd8 {[%clk 0:01:15]} 19. dxc6 {[%clk 0:01:52]}  bxc6 {[%clk 0:01:12]} 20. Qxd8 {[%clk 0:01:48]}  Rfxd8 {[%clk 0:01:11]} 21. Rbc1 {[%clk 0:01:48]}  Nd5 {[%clk 0:01:01]} 22. Nxd5 {[%clk 0:01:45]}  cxd5 {[%clk 0:01:01]} 23. Nb6 {[%clk 0:01:42]}  Ra6 {[%clk 0:00:59]} 24. Bc7 {[%clk 0:01:40]}  Re8 {[%clk 0:00:54]} 25. Nxd5 {[%clk 0:01:36]}  Bxb2 {[%clk 0:00:48]} 26. Rb1 {[%clk 0:01:36]}  Bxa3 {[%clk 0:00:44]} 27. Nxe7+ {[%clk 0:01:33]}  Rxe7 {[%clk 0:00:28]} 28. Rxe7 {[%clk 0:01:34]}  Bxc2 {[%clk 0:00:20]} 29. Rb8+ {[%clk 0:01:33]}  Kg7 {[%clk 0:00:19]} 30. Be5+ {[%clk 0:01:33]}  Rf6 {[%clk 0:00:16]} 31. Bc4 {[%clk 0:01:26]}  Ne6 {[%clk 0:00:11]} 32. Rd7 {[%clk 0:01:21]}  Bc5 {[%clk 0:00:06]} 33. Bxe6 {[%clk 0:01:19]}  Bxf2+ {[%clk 0:00:06]} 34. Kh2 {[%clk 0:01:20]}  Bb3 {[%clk 0:00:02]} 35. Rxf7+ {[%clk 0:01:19]} 1-0